bitfinex-derivatives/quotes_SOLF0:USTF0_20220108
["timestamp","ask_amount","ask_price","bid_price","bid_amount"]
[1641680398975,6.55396361,146.48,146.4,34.36079]
[1641680399577,31.66479,146.49,146.4,34.36079]
[1641680399578,5.46263841,146.45,146.4,34.36079]
[1641680399777,5.46366793,146.43,146.4,34.36079]
[1641680400678,6.55497759,146.46,146.4,34.36079]
[1641680401279,5.46319634,146.44,146.4,34.36079]
[1641680402384,8.26163753,146.47,146.4,34.36079]
[1641680402581,1.707,146.51,146.41,2.1446603]
[1641680402784,7.8627464,146.52,146.41,2.1446603]
[1641680402983,7.8627464,146.52,146.44,6.82663754]
[1641680403182,7.8627464,146.52,146.44,15.48863754]
[1641680404882,7.8627464,146.52,146.45,29.80861544]
[1641680405483,7.8627464,146.52,146.45,27.66479]
[1641680405683,34.21582921,146.55,146.45,27.66479]
[1641680406084,5.46000211,146.53,146.45,27.66479]
[1641680407288,5.46057396,146.51,146.45,27.66479]
[1641680408488,1.706,146.53,146.45,27.66479]
[1641680408688,6.54986757,146.57,146.49,6.82430819]
[1641680408886,6.54986757,146.57,146.53,27.66479]
[1641680409086,6.54986757,146.57,146.53,34.70979]
[1641680409586,14.21340465,146.59,146.54,6.82198042]
[1641680409792,14.41910426,146.62,146.58,6.81988679]
[1641680409991,37.80075841,146.65,146.61,4.0]
[1641680410190,5.841e-05,146.65,146.64,6.81732965]
[1641680410390,5.841e-05,146.65,146.64,12.78532965]
[1641680410792,5.841e-05,146.65,146.64,5.968]
[1641680411394,9.45262886,146.72,146.64,5.968]
[1641680411594,5.45380274,146.69,146.61,42.39551422]
[1641680412395,1.704,146.71,146.61,42.39551422]
[1641680412595,4.0,146.72,146.63,6.81779444]
[1641680412794,4.0,146.72,146.64,27.66479]
[1641680412995,9.45312739,146.71,146.64,27.66479]
[1641680413194,1.704,146.7,146.61,27.66479]
[1641680413397,5.45453477,146.67,146.61,27.66479]
[1641680413696,11.08153477,146.67,146.61,34.48351422]
[1641680413898,5.627,146.67,146.61,34.48351422]
[1641680414899,9.45440255,146.68,146.54,27.28140772]
[1641680415096,5.45600791,146.63,146.54,6.82174773]
[1641680415301,12.47000791,146.63,146.54,6.82174773]
[1641680415499,7.014,146.63,146.54,6.82174773]
[1641680416499,11.014,146.63,146.54,6.82174773]
[1641680416699,9.45676617,146.61,146.54,6.82174773]
[1641680416901,4.0,146.59,146.54,6.82174773]
[1641680417098,4.0,146.58,146.54,6.82174773]
[1641680417299,10.828,146.59,146.54,6.82174773]
[1641680417699,16.28559842,146.59,146.54,6.82174773]
[1641680418501,4.0,146.58,146.54,6.82174773]
[1641680418701,4.0,146.58,146.51,27.66479]
[1641680418900,16.28559842,146.59,146.51,27.66479]
[1641680420601,12.28559842,146.59,146.49,27.66479]
[1641680420804,5.45921446,146.55,146.49,27.66479]
[1641680422104,4.0,146.55,146.49,27.66479]
[1641680422905,31.66479,146.55,146.49,27.66479]
[1641680424008,4.0,146.55,146.49,27.66479]
[1641680425312,5.45838745,146.57,146.49,27.66479]
[1641680425510,69.76848059,146.62,146.53,6.82221313]
[1641680425713,8.2519234,146.66,146.53,16.52521313]
[1641680425912,6.5459234,146.66,146.57,6.82035193]
[1641680426115,6.5459234,146.66,146.57,12.18235193]
[1641680427212,67.2321,146.67,146.57,16.18235193]
[1641680427414,4.0,146.7,146.57,16.18235193]
[1641680427711,7.85259803,146.71,146.57,16.18235193]
[1641680427712,5.45432909,146.68,146.57,12.18235193]
[1641680427914,5.45432909,146.68,146.57,5.362]
[1641680428113,5.45432909,146.68,146.61,6.81872422]
[1641680428313,5.45432909,146.68,146.61,15.39672422]
[1641680428515,5.45432909,146.68,146.63,6.81756204]
[1641680429317,6.54356392,146.71,146.63,6.81756204]
[1641680431717,1.704,146.74,146.63,6.81756204]
[1641680431917,5.45310732,146.71,146.61,8.578]
[1641680432317,5.45424884,146.68,146.6,27.66479]
[1641680432719,5.45428441,146.68,146.6,27.66479]
[1641680432921,8.24748652,146.72,146.62,4.0]
[1641680433118,68.6314,146.75,146.63,27.66479]
[1641680433318,8.79791004,146.74,146.64,4.0]
[1641680433519,8.79791004,146.74,146.63,35.31779]
[1641680433820,5.45241469,146.73,146.63,42.13558444]
[1641680435218,33.11720469,146.73,146.63,35.31779]
[1641680435420,5.45328572,146.71,146.63,35.31779]
[1641680435619,7.15728572,146.71,146.63,35.31779]
[1641680436422,33.11705774,146.73,146.63,39.31779]
[1641680437222,5.45266132,146.72,146.63,35.31779]
[1641680437424,7.55434806,146.72,146.63,35.31779]
[1641680437825,5.45395812,146.69,146.63,35.31779]
[1641680438027,5.45395812,146.69,146.63,27.66479]
[1641680438624,5.45417881,146.68,146.63,27.66479]
[1641680439525,2.10168674,146.71,146.63,27.66479]
[1641680439724,33.11709446,146.73,146.63,27.66479]
[1641680439725,5.45230446,146.73,146.63,27.66479]
[1641680439924,5.45230446,146.73,146.63,33.65379]
[1641680440124,5.45230446,146.73,146.63,37.65379]
[1641680440324,5.45230446,146.73,146.63,33.65379]
[1641680440925,2.10385583,146.72,146.63,33.65379]
[1641680441125,2.10385583,146.72,146.64,6.81732965]
[1641680441727,5.45230446,146.73,146.64,6.81732965]
[1641680442229,5.45230446,146.73,146.64,10.81732965]
[1641680442627,5.45230446,146.73,146.65,4.0]
[1641680443333,5.45230446,146.73,146.67,27.66479]
[1641680443532,5.45230446,146.73,146.67,33.98579]
[1641680446235,81.33884445,146.75,146.67,37.98579]
[1641680446838,81.33884445,146.75,146.67,33.98579]
[1641680447036,2.10284887,146.74,146.67,33.98579]
[1641680447237,6.54271774,146.73,146.67,33.98579]
[1641680447437,5.45335593,146.7,146.67,27.66479]
[1641680447637,11.01335593,146.7,146.63,27.66479]
[1641680447838,5.45463127,146.67,146.61,6.81849175]
[1641680448038,5.45463127,146.67,146.58,6.81988679]
[1641680448238,7.15963127,146.67,146.58,6.81988679]
[1641680448638,5.45463127,146.67,146.58,6.81988679]
[1641680449442,9.45463127,146.67,146.58,6.81988679]
[1641680449640,5.45547904,146.65,146.58,6.81988679]
[1641680450947,12.33547904,146.65,146.53,14.41144445]
[1641680451141,4.0,146.6,146.52,21.23412303]
[1641680451343,5.4585922,146.56,146.52,14.41144445]
[1641680451544,12.9385922,146.56,146.52,14.41144445]
[1641680451740,12.9385922,146.56,146.52,7.37144445]
[1641680451940,12.9385922,146.56,146.49,66.0391478]
[1641680452140,7.48,146.56,146.49,27.66479]
[1641680452542,7.48,146.56,146.5,2.14213559]
[1641680452943,11.48,146.56,146.5,2.14213559]
[1641680453143,7.48,146.56,146.49,27.66479]
[1641680453344,40.60343308,146.56,146.47,27.66479]
[1641680453547,44.60343308,146.56,146.47,27.66479]
[1641680453744,1.706,146.55,146.47,27.66479]
[1641680454948,9.45964852,146.53,146.44,27.66479]
[1641680455347,37.12443852,146.53,146.44,27.66479]
[1641680455548,5.46073074,146.51,146.45,4.85196525]
[1641680455948,5.46073074,146.51,146.45,2.70812446]
[1641680456151,9.46073074,146.51,146.45,2.70812446]
[1641680456548,9.46073074,146.51,146.44,27.66479]
[1641680456749,4.0,146.5,146.42,27.66479]
[1641680456949,5.46073074,146.51,146.42,27.66479]
[1641680457149,5.46073074,146.51,146.43,2.14405926]
[1641680457749,27.66479,146.53,146.43,2.14405926]
[1641680458150,31.66479,146.53,146.43,2.14405926]
[1641680458350,33.12466276,146.53,146.43,2.14405926]
[1641680460357,27.66479,146.53,146.46,6.82570561]
[1641680460557,27.66479,146.53,146.46,13.97970561]
[1641680460758,27.66479,146.53,146.46,7.154]
[1641680460959,27.66479,146.56,146.47,6.14405926]
[1641680461157,27.66479,146.56,146.48,4.0]
[1641680461359,27.66479,146.56,146.5,6.82360969]
[1641680461660,27.66479,146.56,146.5,14.45160969]
[1641680464060,33.12336353,146.56,146.5,7.628]
[1641680464260,33.12336353,146.56,146.48,27.66479]
[1641680464861,33.12336353,146.56,146.48,31.66479]
[1641680465260,33.12336353,146.56,146.49,8.96692275]
[1641680465460,33.12336353,146.56,146.49,20.62392275]
[1641680465760,27.66479,146.56,146.5,4.0]
[1641680466160,68.235,146.6,146.52,4.0]
[1641680466463,6.54654042,146.65,146.52,15.30291134]
[1641680466661,12.00176516,146.65,146.53,4.0]
[1641680466863,12.00176516,146.65,146.54,4.0]
[1641680466864,5.45522474,146.65,146.54,4.0]
[1641680467462,5.45522474,146.65,146.57,27.66479]
[1641680467663,5.45522474,146.65,146.57,33.09179]
[1641680467861,5.45522474,146.65,146.57,37.09179]
[1641680468579,5.45522474,146.65,146.57,33.09179]
[1641680469163,63.845,146.67,146.57,37.09179]
[1641680469365,63.845,146.67,146.6,27.66479]
[1641680469565,63.845,146.67,146.6,34.17179]
[1641680471364,7.85277425,146.7,146.6,61.83658]
[1641680472265,11.85277425,146.7,146.6,61.83658]
[1641680474768,7.85277425,146.7,146.6,61.83658]
[1641680474970,5.45448952,146.67,146.6,61.83658]
[1641680475572,5.45568348,146.64,146.51,6.8231441]
[1641680475771,5.45568348,146.64,146.49,40.0783578]
[1641680475772,4.0,146.6,146.49,112.37376599]
[1641680475972,4.0,146.51,146.44,56.95599162]
[1641680476273,6.55349806,146.49,146.46,32.90440786]
[1641680476474,6.55349806,146.49,146.46,24.08440786]
[1641680476673,4.0,146.47,146.42,51.62039948]
[1641680476874,5.707,146.46,146.42,41.62039948]
[1641680477075,1.707,146.46,146.35,69.09310109]
[1641680477375,9.575,146.47,146.36,27.66479]
[1641680477675,5.575,146.47,146.36,29.59596682]
[1641680477872,4.0,146.45,146.36,29.59596682]
[1641680478073,4.0,146.45,146.37,1.93117682]
[1641680478273,4.0,146.45,146.37,4.62621683]
[1641680478572,5.575,146.47,146.37,4.62621683]
[1641680478773,9.575,146.47,146.37,4.62621683]
[1641680478973,4.0,146.46,146.37,4.62621683]
[1641680479175,1.707,146.45,146.38,1.93117682]
[1641680479673,1.707,146.45,146.37,1.93117682]
[1641680479875,4.0,146.43,146.37,1.93117682]
[1641680480474,4.0,146.43,146.34,27.66479]
[1641680480673,1.707,146.47,146.34,27.66479]
[1641680480875,11.419,146.48,146.34,34.4958577]
[1641680481075,4.0,146.48,146.34,42.6208577]
[1641680481273,5.707,146.48,146.34,42.6208577]
[1641680481675,4.0,146.46,146.35,4.62050877]
[1641680482075,9.46210771,146.47,146.36,1.93147738]
[1641680482274,5.46210771,146.47,146.36,1.93147738]
[1641680482474,9.46210771,146.47,146.36,1.93147738]
[1641680482874,5.46210771,146.47,146.36,1.93147738]
[1641680483675,4.0,146.44,146.36,1.93147738]
[1641680483874,4.0,146.45,146.36,1.93147738]
[1641680484074,4.0,146.45,146.34,34.4958577]
[1641680484274,9.46340705,146.43,146.34,27.66479]
[1641680484475,5.46340705,146.43,146.34,27.66479]
[1641680485074,10.92713708,146.43,146.34,27.66479]
[1641680485474,5.46373003,146.43,146.34,27.66479]
[1641680486076,5.46373003,146.43,146.35,1.93211761]
[1641680486576,5.46373003,146.43,146.34,27.66479]
[1641680486976,5.46373003,146.43,146.35,1.93198379]
[1641680487178,5.46296136,146.45,146.35,7.57498379]
[1641680487377,5.46296136,146.45,146.36,6.83036782]
[1641680487877,33.125971,146.49,146.38,6.82943486]
[1641680488077,27.66479,146.49,146.41,4.0]
[1641680488279,27.66479,146.49,146.41,12.497]
[1641680488479,27.66479,146.49,146.43,4.0]
[1641680488879,27.66479,146.52,146.44,1.93198379]
[1641680489080,27.66479,146.52,146.47,4.0]
[1641680489279,27.66479,146.52,146.47,10.566]
[1641680489680,27.66479,146.52,146.47,6.566]
[1641680489880,144.03010947,146.61,146.48,6.82477393]
[1641680490080,76.39350947,146.61,146.48,6.82477393]
[1641680491081,72.39350947,146.61,146.48,6.82477393]
[1641680491681,72.39350947,146.61,146.51,31.66479]
[1641680491881,72.39350947,146.61,146.51,38.16879]
[1641680492581,72.39350947,146.61,146.52,4.0]
[1641680492783,72.39350947,146.61,146.51,34.16879]
[1641680492784,72.39350947,146.61,146.51,38.16879]
[1641680492981,72.39350947,146.61,146.51,44.99216689]
[1641680493382,6.54820947,146.61,146.51,44.99216689]
[1641680493583,6.54820947,146.61,146.52,4.0]
[1641680495385,6.54820947,146.61,146.53,4.0]
[1641680495787,75.1241,146.65,146.53,4.0]
[1641680495986,65.1641,146.65,146.53,10.82244585]
[1641680496186,65.1641,146.65,146.53,6.82244585]
[1641680496386,65.1641,146.65,146.53,10.82244585]
[1641680496586,65.1641,146.65,146.55,4.0]
[1641680496788,65.1641,146.65,146.55,10.553]
[1641680497389,65.1641,146.65,146.56,6.82104976]
[1641680497588,7.85540346,146.66,146.57,6.82058452]
[1641680497789,7.85540346,146.66,146.56,34.48560713]
[1641680497988,7.85540346,146.66,146.58,4.0]
[1641680498288,7.85540346,146.66,146.58,6.111]
[1641680499288,5.45587803,146.64,146.58,6.111]
[1641680499689,5.45663083,146.62,146.56,27.66479]
[1641680500089,5.45739229,146.6,146.55,27.66479]
[1641680500288,5.45819822,146.57,146.48,6.82454105]
[1641680500691,5.45959007,146.54,146.45,14.37849732]
[1641680500889,12.46259007,146.54,146.45,14.37849732]
[1641680501089,5.46054814,146.51,146.45,14.37849732]
[1641680501491,5.46054814,146.51,146.42,6.82756973]
[1641680501691,5.46054814,146.51,146.43,27.66479]
[1641680501891,5.46054814,146.51,146.43,29.59452488]
[1641680502394,5.46054814,146.51,146.43,27.66479]
[1641680503391,1.706,146.53,146.43,31.66479]
[1641680503591,6.55086002,146.55,146.43,27.66479]
[1641680503792,6.55086002,146.55,146.44,1.92917888]
[1641680503991,6.55086002,146.55,146.44,10.45017888]
[1641680504393,6.55086002,146.55,146.45,6.82593857]
[1641680504595,6.55086002,146.55,146.44,8.75558341]
[1641680504997,1.706,146.54,146.45,1.92917888]
[1641680505593,33.37079,146.54,146.45,1.92917888]
[1641680505797,4.0,146.53,146.44,1.92917888]
[1641680505996,33.37079,146.54,146.44,1.92917888]
[1641680506395,33.37079,146.54,146.43,27.66479]
[1641680506795,29.37079,146.54,146.43,27.66479]
[1641680506996,33.37079,146.54,146.43,27.66479]
[1641680507401,29.37079,146.54,146.44,1.92989419]
[1641680507699,1.706,146.54,146.44,8.75629872]
[1641680508302,1.706,146.54,146.45,1.92989419]
[1641680508498,4.0,146.54,146.45,1.92989419]
[1641680508901,4.0,146.54,146.44,6.82640453]
[1641680509301,4.0,146.54,146.45,1.92957617]
[1641680509500,5.45999525,146.53,146.45,9.08657617]
[1641680510403,5.45858946,146.56,146.46,1.92957617]
[1641680510603,5.45858946,146.56,146.46,5.92957617]
[1641680510803,6.54889091,146.59,146.47,4.0]
[1641680511005,6.54889091,146.59,146.46,8.75504883]
[1641680511205,5.45849838,146.57,146.45,7.157]
[1641680511604,5.45849838,146.57,146.48,27.66479]
[1641680511806,5.45849838,146.57,146.48,36.33679]
[1641680512005,4.0,146.57,146.48,36.33679]
[1641680512205,5.45883503,146.56,146.48,36.33679]
[1641680513006,5.45883503,146.56,146.48,8.672]
[1641680513206,5.45992099,146.53,146.43,34.49166056]
[1641680513506,5.46081616,146.5,146.43,27.66479]
[1641680513707,5.46081616,146.5,146.44,1.92976512]
[1641680514306,5.46081616,146.5,146.43,27.66479]
[1641680514709,5.46148814,146.49,146.43,27.66479]
[1641680515714,67.0202,146.53,146.43,34.4918936]
[1641680515912,1.706,146.56,146.45,4.0]
[1641680516110,1.706,146.56,146.5,4.0]
[1641680516311,39.9297231,146.61,146.55,6.82081713]
[1641680516511,14.41846721,146.6,146.55,12.51481713]
[1641680517811,67.9453,146.68,146.59,55.32958]
[1641680518012,67.9453,146.68,146.59,60.82258]
[1641680518813,2.11222394,146.67,146.59,60.82258]
[1641680519815,2.11222394,146.67,146.62,27.66479]
[1641680520016,2.11222394,146.67,146.62,35.45779]
[1641680520714,2.11222394,146.68,146.62,35.45779]
[1641680527625,9.42399055,146.69,146.62,35.45779]
[1641680527824,9.42399055,146.69,146.62,63.12258]
[1641680528228,70.49906234,146.72,146.62,63.12258]
[1641680528427,6.54346234,146.72,146.62,69.9408393]
[1641680528628,38.2237231,146.75,146.62,69.9408393]
[1641680528826,38.2237231,146.75,146.63,4.0]
[1641680529025,38.2237231,146.75,146.62,69.9408393]
[1641680529428,38.2237231,146.75,146.63,4.0]
[1641680529826,2.10783519,146.76,146.63,4.0]
[1641680530030,2.10783519,146.76,146.72,27.66479]
[1641680530230,2.10783519,146.76,146.72,34.69979]
[1641680531031,38.2237231,146.79,146.72,34.69979]
[1641680531231,10.04,146.8,146.72,34.69979]
[1641680531431,104.8703231,146.83,146.72,34.69979]
[1641680531839,110.3190197,146.83,146.72,27.66479]
[1641680532030,117.13495536,146.83,146.7,27.66479]
[1641680532231,5.45020744,146.79,146.7,27.66479]
[1641680532630,11.17120744,146.79,146.7,27.66479]
[1641680532832,4.0,146.77,146.7,27.66479]
[1641680533031,5.45147293,146.75,146.58,12.023]
[1641680533331,5.45147293,146.75,146.62,4.0]
[1641680533534,5.45147293,146.75,146.64,6.81732965]
[1641680533731,5.45147293,146.75,146.62,4.0]
[1641680533932,5.45147293,146.75,146.68,27.66479]
[1641680535232,4.0,146.75,146.68,27.66479]
[1641680535832,5.45087173,146.77,146.68,27.66479]
[1641680536035,5.45087173,146.77,146.68,35.38679]
[1641680536233,4.0,146.75,146.68,35.38679]
[1641680536433,5.45087173,146.77,146.68,35.38679]
[1641680536834,5.45087173,146.77,146.71,6.81384573]
[1641680537032,6.54007788,146.79,146.71,14.40884573]
[1641680537438,1.703,146.82,146.71,14.40884573]
[1641680537633,66.6466,146.83,146.71,14.40884573]
[1641680538034,66.6466,146.83,146.76,27.66479]
[1641680538236,66.6466,146.83,146.76,34.56479]
[1641680539938,5.44922639,146.81,146.76,34.56479]
[1641680540537,66.6466,146.83,146.76,34.56479]
[1641680542037,66.6466,146.83,146.76,38.56479]
[1641680542440,16.63641971,146.87,146.76,34.56479]
[1641680542640,4.0,146.85,146.76,34.56479]
[1641680542839,4.0,146.82,146.76,34.56479]
[1641680543040,5.44890972,146.82,146.76,34.56479]
[1641680544040,1.703,146.83,146.76,34.56479]
[1641680544241,5.44854525,146.83,146.76,34.56479]
[1641680544439,5.703,146.82,146.76,27.66479]
[1641680544640,4.0,146.77,146.65,6.81686492]
[1641680544839,1.704,146.76,146.65,6.81686492]
[1641680545039,1.704,146.76,146.62,4.0]
[1641680545842,7.1544061,146.78,146.63,1.92441633]
[1641680546041,4.0,146.76,146.66,27.66479]
[1641680546242,4.0,146.76,146.66,34.48119026]
[1641680546442,4.0,146.74,146.66,27.66479]
[1641680546742,5.45226877,146.73,146.66,27.66479]
[1641680546945,6.778,146.73,146.66,27.66479]
[1641680547945,5.45149878,146.75,146.64,27.66479]
[1641680548148,17.55949878,146.75,146.64,27.66479]
[1641680548346,4.0,146.73,146.64,27.66479]
[1641680548546,1.704,146.74,146.61,42.03923969]
[1641680548747,1.704,146.74,146.61,27.66479]
[1641680549149,4.0,146.73,146.61,27.66479]
[1641680549446,4.0,146.71,146.61,27.66479]
[1641680549648,1.704,146.7,146.61,27.66479]
[1641680549946,36.07179,146.71,146.61,27.66479]
[1641680550147,38.36779,146.71,146.59,6.81942171]
[1641680550347,4.0,146.69,146.59,6.81942171]
[1641680550549,5.704,146.68,146.58,27.66479]
[1641680550756,1.704,146.68,146.6,2.69583193]
[1641680550948,11.15776408,146.69,146.6,2.69583193]
[1641680551350,7.15776408,146.69,146.6,2.69583193]
[1641680551747,2.11056268,146.68,146.58,27.66479]
[1641680552547,11.63476408,146.69,146.58,27.66479]
[1641680553551,11.63476408,146.69,146.57,6.82058452]
[1641680554149,4.0,146.68,146.57,6.82058452]
[1641680554348,4.0,146.66,146.58,2.69392803]
[1641680554549,5.45523541,146.65,146.58,2.69392803]
[1641680555150,12.25723541,146.65,146.58,2.69392803]
[1641680555351,1.705,146.64,146.52,83.64834969]
[1641680555552,12.25723541,146.65,146.55,6.8212824]
[1641680555952,5.45629523,146.62,146.55,6.8212824]
[1641680556151,4.0,146.6,146.52,14.37444969]
[1641680556353,5.45775684,146.59,146.52,14.37444969]
[1641680556552,1.705,146.58,146.52,14.37444969]
[1641680556853,4.0,146.55,146.52,14.37444969]
[1641680557057,7.439,146.55,146.52,14.37444969]
[1641680557452,7.439,146.55,146.51,34.48816689]
[1641680558252,68.875,146.6,146.51,34.48816689]
[1641680558654,7.16150385,146.62,146.51,27.66479]
[1641680558855,5.45650385,146.62,146.51,27.66479]
[1641680559058,1.705,146.65,146.52,1.92731475]
[1641680559254,12.00069619,146.66,146.53,6.82244585]
[1641680559457,1.705,146.65,146.53,6.82244585]
[1641680560059,1.705,146.65,146.54,1.92731475]
[1641680560259,5.4549139,146.66,146.54,1.92731475]
[1641680560661,5.4549139,146.66,146.56,6.82104976]
[1641680561859,5.4549139,146.66,146.56,15.53504976]
[1641680562060,5.4549139,146.66,146.57,27.66479]
[1641680562359,62.9471,146.69,146.57,27.66479]
[1641680562960,68.40103982,146.69,146.57,27.66479]
[1641680563160,68.40103982,146.69,146.58,5.92597452]
[1641680563462,68.40103982,146.69,146.59,4.0]
[1641680563662,68.40103982,146.69,146.59,8.841]
[1641680564061,68.40103982,146.69,146.6,27.66479]
[1641680564862,5.45393982,146.69,146.61,6.81849175]
[1641680565062,1.704,146.73,146.64,6.81732965]
[1641680565261,7.84983592,146.76,146.64,5.345]
[1641680565262,14.37444969,146.76,146.64,5.345]
[1641680565461,14.37444969,146.76,146.67,6.81570338]
[1641680565663,14.37444969,146.76,146.67,15.03570338]
[1641680566062,14.37444969,146.76,146.69,27.66479]
[1641680566261,4.0,146.78,146.67,15.03570338]
[1641680566262,5.45086141,146.77,146.67,15.03570338]
[1641680568163,5.45086141,146.77,146.7,27.66479]
[1641680569064,5.45086141,146.77,146.7,35.79879]
[1641680570163,5.45086141,146.77,146.7,63.46358]
[1641680570867,65.3239,146.79,146.7,63.46358]
[1641680571066,1.703,146.8,146.71,6.81384573]
[1641680571364,14.37444969,146.82,146.72,4.0]
[1641680571564,14.37444969,146.82,146.71,6.81384573]
[1641680571966,14.37444969,146.82,146.71,10.81384573]
[1641680572166,14.37444969,146.82,146.73,27.66479]
[1641680572368,4.0,146.82,146.73,27.66479]
[1641680572567,9.44953585,146.81,146.7,27.66479]
[1641680572768,4.0,146.8,146.64,14.37444969]
[1641680572969,5.45061784,146.78,146.64,14.37444969]
[1641680573169,4.0,146.75,146.64,14.37444969]
[1641680573368,13.27973426,146.75,146.64,14.37444969]
[1641680573567,13.27973426,146.75,146.62,10.81802686]
[1641680573568,1.704,146.74,146.62,6.81802686]
[1641680573768,13.27973426,146.75,146.62,6.81802686]
[1641680574169,13.27973426,146.75,146.68,27.66479]
[1641680574770,17.27973426,146.75,146.68,27.66479]
[1641680574974,4.0,146.74,146.68,27.66479]
[1641680575171,5.45257473,146.72,146.68,27.66479]
[1641680575372,13.46857473,146.72,146.68,27.66479]
[1641680575572,13.46857473,146.72,146.62,6.81802686]
[1641680575773,4.0,146.71,146.62,6.81802686]
[1641680575971,5.45425059,146.68,146.6,6.8189567]
[1641680576174,13.97825059,146.68,146.62,27.66479]
[1641680576573,8.524,146.68,146.62,27.66479]
[1641680580179,43.92802111,146.72,146.62,27.66479]
[1641680580377,42.22402111,146.72,146.62,27.66479]
[1641680580980,46.22402111,146.72,146.62,27.66479]
[1641680581678,5.45406321,146.68,146.62,27.66479]
[1641680581879,13.45606321,146.68,146.62,27.66479]
[1641680583279,8.002,146.68,146.62,27.66479]
[1641680583879,35.68079,146.72,146.62,27.66479]
[1641680584683,5.45352793,146.7,146.62,27.66479]
[1641680586983,5.45289796,146.72,146.62,27.66479]
[1641680587182,5.45289796,146.72,146.64,6.81732965]
[1641680587583,4.0,146.71,146.64,6.81732965]
[1641680587786,5.45406077,146.68,146.62,27.66479]
[1641680587983,5.45519891,146.65,146.62,27.66479]
[1641680588183,13.90319891,146.65,146.62,27.66479]
[1641680588583,13.90319891,146.65,146.6,27.66479]
[1641680592087,13.90319891,146.65,146.61,2.70213373]
[1641680592890,5.45414584,146.68,146.6,27.66479]
[1641680593091,5.45414584,146.68,146.61,6.81872422]
[1641680593289,42.03923969,146.71,146.61,6.81872422]
[1641680593888,5.45374362,146.69,146.62,2.70167505]
[1641680594889,1.704,146.72,146.64,6.81732965]
[1641680595088,27.66479,146.73,146.64,6.81732965]
[1641680596289,27.66479,146.73,146.64,34.48211965]
[1641680598794,8.24655447,146.74,146.64,34.48211965]
[1641680598993,6.54255447,146.74,146.64,34.48211965]
[1641680599391,6.54255447,146.74,146.65,2.70265582]
[1641680600393,2.11548936,146.73,146.65,2.70265582]
[1641680601095,5.45289759,146.72,146.65,2.70265582]
[1641680602294,5.45380603,146.69,146.65,2.70265582]
[1641680603493,8.24705677,146.73,146.65,2.70265582]
[1641680603695,6.54305677,146.73,146.65,2.70265582]
[1641680603896,14.37444969,146.75,146.71,6.81384573]
[1641680604096,14.37444969,146.75,146.68,27.25538294]
[1641680604097,14.37444969,146.75,146.67,6.81570338]
[1641680604298,14.37444969,146.75,146.69,27.66479]
[1641680605098,2.1190277,146.75,146.69,27.66479]
[1641680605699,2.1190277,146.75,146.7,6.81431005]
[1641680606100,19.82528311,146.77,146.7,10.81431005]
[1641680606300,5.45083342,146.77,146.7,13.51696587]
[1641680606600,82.88814969,146.8,146.7,9.51696587]
[1641680606800,5.45072072,146.77,146.7,9.51696587]
[1641680607201,90.040762,146.8,146.71,2.70265582]
[1641680608202,2.11490886,146.79,146.7,6.81431005]
[1641680609202,2.11490886,146.79,146.71,4.0]
[1641680609407,2.11490886,146.79,146.72,4.0]
[1641680609600,2.11490886,146.79,146.71,10.81384573]
[1641680610004,2.11490886,146.79,146.71,6.81384573]
[1641680610204,5.44979558,146.8,146.71,6.81384573]
[1641680610403,5.44979558,146.8,146.74,27.66479]
[1641680611806,83.16374969,146.83,146.74,27.66479]
[1641680612306,14.37444969,146.83,146.76,4.0]
[1641680612506,14.37444969,146.83,146.74,31.66479]
[1641680612909,2.11099631,146.83,146.74,31.66479]
[1641680614208,2.11099631,146.83,146.75,4.0]
[1641680614411,2.11099631,146.83,146.77,27.66479]
[1641680615611,14.36,146.84,146.77,27.66479]
[1641680615811,5.45064951,146.78,146.74,27.66479]
[1641680616013,13.47864951,146.78,146.7,14.37444969]
[1641680616411,13.47864951,146.78,146.71,27.66479]
[1641680616613,5.45169265,146.75,146.69,27.66479]
[1641680616912,13.37769265,146.75,146.69,27.66479]
[1641680617513,5.4522758,146.73,146.65,6.81686492]
[1641680618514,5.4522758,146.73,146.67,27.66479]
[1641680619516,4.0,146.69,146.63,14.37444969]
[1641680619717,6.459,146.69,146.63,14.37444969]
[1641680620417,10.459,146.69,146.63,14.37444969]